[Event "Summer Prague Open-A 2024"]
[Site "Prague"]
[Date "2024.08.02"]
[Round "1.1"]
[White "Neuman, Petr"]
[Black "Schuran, Werner"]
[Result "1-0"]
[Annotator "RC"]
[ECO "E91"]
[WhiteElo "2426"]
[BlackElo "1926"]
[PlyCount "81"]
[EventDate "2024.08.02"]
[EventType "swiss"]
[EventCountry "CZE"]
[SourceTitle "playchess.com"]
[Source "ChessBase"]
[SourceQuality "1"]
[TimeControl "40/5400+30:1800+30"]

1. d4 {[%emt 0:00:03]} Nf6 {[%emt 0:00:12]} 2. c4 {[%emt 0:00:04]} g6 {[%emt 0:00:26]} 3. Nc3 {[%emt 0:00:04]} Bg7 {[%emt 0:00:05]} 4. e4 {[%emt 0:00:04]} d6 {[%emt 0:00:24]} 5. Nf3 {[%emt 0:00:04]} O-O {[%emt 0:00:18]} 6. Be2 {[%emt 0:00:03]} Bg4 {[%emt 0:01:30]} 7. Be3 {[%emt 0:00:08]} Nbd7 {[%emt 0:00:56]} 8. h3 {[%emt 0:00:53]} Bxf3 {[%emt 0:00:33]} 9. Bxf3 {[%emt 0:00:03]} c6 {[%emt 0:00:32]} 10. g4 {[%emt 0:00:53]} Qc7 {[%emt 0:05:53]} 11. g5 {[%emt 0:07:03]} Ne8 {[%emt 0:00:17]} 12. h4 {[%emt 0:00:25]} e5 {[%emt 0:12:58]} 13. d5 {[%emt 0:00:36]} f5 {[%emt 0:18:44]} 14. gxf6 {[%emt 0:00:40]} Nexf6 {[%emt 0:00:13]} 15. h5 {[%emt 0:00:20]} Rf7 {[%emt 0:06:40]} 16. hxg6 {[%emt 0:00:40]} hxg6 {[%emt 0:00:07]} 17. Be2 {[%emt 0:01:52]} c5 {[%emt 0:05:57]} 18. Qd2 {[%emt 0:00:19]} a6 {[%emt 0:01:42]} 19. a4 {[%emt 0:01:23]} Nf8 {[%emt 0:05:16]} 20. O-O-O {[%emt 0:02:27]} Re8 {[%emt 0:04:05]} 21. Rh4 {[%emt 0:00:40]} Qa5 {[%emt 0:07:48]} 22. Rdh1 {[%emt 0:00:32]} Qb4 {[%emt 0:00:48]} 23. Qd3 {[%emt 0:00:51]} g5 {[%emt 0:10:57]} 24. Rh5 {[%emt 0:10:30]} g4 {[%emt 0:03:17]} 25. Rg5 {[%emt 0:00:47]} Rb8 {[%emt 0:02:02]} 26. Bd2 {[%emt 0:01:07]} Qb6 {[%emt 0:01:11]} 27. Qg3 {[%emt 0:00:39]} Qc7 {[%emt 0:01:16]} 28. Qh4 {[%emt 0:00:41]} N6h7 {[%emt 0:04:02]} 29. Rxg4 {[%emt 0:00:16]} Qd8 {[%emt 0:01:06]} 30. Qh2 {[%emt 0:00:11]} Qf6 {[%emt 0:00:38]} 31. Be3 {[%emt 0:00:46]} b6 {[%emt 0:00:26]} 32. Rh4 {[%emt 0:00:28]} Rbb7 {[%emt 0:00:39]} 33. Rxh7 {[%emt 0:01:02]} Nxh7 {[%emt 0:00:29]} 34. Qxh7+ {[%emt 0:00:05]} Kf8 {[%emt 0:00:06]} 35. Bg4 {[%emt 0:00:55]} Rfe7 {[%emt 0:04:52]} 36. Be6 {[%emt 0:01:28]} Ke8 {[%emt 0:00:25]} 37. Qf5 {[%emt 0:01:59]} Qxf5 {[%emt 0:00:56]} 38. exf5 {[%emt 0:00:07]} Bf8 {[%emt 0:00:30]} 39. Ne4 {[%emt 0:00:34]} Rg7 {[%emt 0:01:01]} 40. f6 {[%emt 0:00:29]} Rg6 {[%emt 0:00:32]} 41. Rh8 {[%emt 0:30:18]} 1-0

[Event "Summer Prague Open-A 2024"]
[Site "Prague"]
[Date "2024.08.02"]
[Round "1.2"]
[White "Hujo, Jozef"]
[Black "Nothnagel, Marian Can"]
[Result "0-1"]
[Annotator "RC"]
[ECO "A45"]
[WhiteElo "1925"]
[BlackElo "2410"]
[PlyCount "84"]
[EventDate "2024.08.02"]
[EventType "swiss"]
[EventCountry "CZE"]
[SourceTitle "playchess.com"]
[Source "ChessBase"]
[SourceQuality "1"]
[TimeControl "40/5400+30:1800+30"]

1. d4 {[%emt 0:00:09]} Nf6 {[%emt 0:00:03]} 2. Bf4 {[%emt 0:00:28]} g6 {[%emt 0:00:04]} 3. Nd2 {[%emt 0:00:37]} Bg7 {[%emt 0:00:13]} 4. Ngf3 {[%emt 0:01:32]} O-O {[%emt 0:00:07]} 5. e4 {[%emt 0:03:46]} d6 {[%emt 0:00:05]} 6. Be2 {[%emt 0:00:39]} Nbd7 {[%emt 0:00:39]} 7. O-O {[%emt 0:02:08]} Qe8 {[%emt 0:02:39]} 8. c3 {[%emt 0:02:32]} e5 {[%emt 0:00:56]} 9. dxe5 {[%emt 0:00:40]} dxe5 {[%emt 0:00:06]} 10. Bg3 {[%emt 0:07:22]} Nh5 {[%emt 0:00:23]} 11. Qc2 {[%emt 0:05:08]} a5 {[%emt 0:09:53]} 12. Rfd1 {[%emt 0:03:17]} Kh8 {[%emt 0:05:05]} 13. Nc4 {[%emt 0:10:50]} Nxg3 {[%emt 0:05:07]} 14. hxg3 {[%emt 0:00:57]} Qe7 {[%emt 0:01:45]} 15. Rd5 {[%emt 0:07:44]} b6 {[%emt 0:11:41]} 16. Rad1 {[%emt 0:01:18]} f6 {[%emt 0:00:25]} 17. Ne3 {[%emt 0:09:08]} Nc5 {[%emt 0:08:48]} 18. b4 {[%emt 0:01:56]} Nb7 {[%emt 0:00:05]} 19. Bb5 {[%emt 0:02:56]} Be6 {[%emt 0:15:42]} 20. Bc6 {[%emt 0:10:39]} Rab8 {[%emt 0:00:08]} 21. Rd7 {[%emt 0:10:17]} Bxd7 {[%emt 0:00:05]} 22. Rxd7 {[%emt 0:00:17]} Qe6 {[%emt 0:00:10]} 23. Rxc7 {[%emt 0:00:26]} Qd6 {[%emt 0:03:19]} 24. Nd5 {[%emt 0:00:58]} Nd8 {[%emt 0:01:00]} 25. Qa4 {[%emt 0:05:55]} f5 {[%emt 0:11:44]} 26. Nd2 {[%emt 0:00:18]} fxe4 {[%emt 0:06:51]} 27. Nxe4 {[%emt 0:00:48]} Qe6 {[%emt 0:00:01]} 28. Ne3 {[%emt 0:01:17]} Nxc6 {[%emt 0:04:27]} 29. Rxc6 {[%emt 0:00:10]} Qd7 {[%emt 0:00:05]} 30. b5 {[%emt 0:01:15]} Rfd8 {[%emt 0:06:02]} 31. Nd6 {[%emt 0:02:23]} Bf8 {[%emt 0:00:54]} 32. Nec4 {[%emt 0:00:02]} Bxd6 {[%emt 0:00:39]} 33. Nxd6 {[%emt 0:00:20]} Qe7 {[%emt 0:01:32]} 34. Qd1 {[%emt 0:00:15]} Rd7 {[%emt 0:00:43]} 35. Qd5 {[%emt 0:03:47]} Rbd8 {[%emt 0:00:07]} 36. Nc8 {[%emt 0:00:42]} Rxd5 {[%emt 0:00:33]} 37. Nxe7 {[%emt 0:00:11]} Rxb5 {[%emt 0:00:06]} 38. Rc7 {[%emt 0:01:49]} Rc5 {[%emt 0:01:41]} 39. Rb7 {[%emt 0:00:21]} b5 {[%emt 0:00:30]} 40. g4 {[%emt 0:00:46]} e4 {[%emt 0:01:15]} 41. Kh2 {[%emt 0:31:34]} Rd3 {[%emt 0:31:00]} 42. Rb8+ {[%emt 0:02:13]} Kg7 {[%emt 0:00:06]} 0-1

[Event "Summer Prague Open-A 2024"]
[Site "Prague"]
[Date "2024.08.02"]
[Round "1.3"]
[White "Garcia Roman, Daniel"]
[Black "Yagiz, Bora"]
[Result "1-0"]
[Annotator "RC"]
[ECO "A41"]
[WhiteElo "2397"]
[BlackElo "1924"]
[PlyCount "115"]
[EventDate "2024.08.02"]
[EventType "swiss"]
[EventCountry "CZE"]
[SourceTitle "playchess.com"]
[Source "ChessBase"]
[SourceQuality "1"]
[TimeControl "40/5400+30:1800+30"]

1. d4 {[%emt 0:00:06]} d6 {[%emt 0:04:27]} 2. c4 {[%emt 0:05:53]} e5 {[%emt 0:00:43]} 3. Nf3 {[%emt 0:00:25]} e4 {[%emt 0:00:14]} 4. Ng5 {[%emt 0:00:17]} f5 {[%emt 0:00:11]} 5. Nh3 {[%emt 0:00:35]} Nf6 {[%emt 0:00:30]} 6. e3 {[%emt 0:03:09]} c6 {[%emt 0:01:07]} 7. Nf4 {[%emt 0:01:09]} Na6 {[%emt 0:01:32]} 8. Nc3 {[%emt 0:01:30]} Nc7 {[%emt 0:05:37]} 9. d5 {[%emt 0:02:25]} cxd5 {[%emt 0:07:26]} 10. Ncxd5 {[%emt 0:11:54]} Be7 {[%emt 0:06:02]} 11. Nxe7 {[%emt 0:22:39]} Qxe7 {[%emt 0:00:55]} 12. Bd2 {[%emt 0:01:11]} Na6 {[%emt 0:31:25]} 13. Bc3 {[%emt 0:03:39]} O-O {[%emt 0:07:33]} 14. h4 {[%emt 0:14:54]} Be6 {[%emt 0:22:27]} 15. h5 {[%emt 0:18:50]} Rad8 {[%emt 0:05:48]} 16. Qd4 {[%emt 0:02:41]} Nc5 {[%emt 0:01:03]} 17. h6 {[%emt 0:00:14]} g6 {[%emt 0:00:41]} 18. b3 {[%emt 0:01:10]} Kf7 {[%emt 0:01:10]} 19. Be2 {[%emt 0:01:21]} Ke8 {[%emt 0:00:12]} 20. Rd1 {[%emt 0:01:56]} Bc8 {[%emt 0:00:15]} 21. b4 {[%emt 0:01:54]} Na4 {[%emt 0:00:08]} 22. Ba1 {[%emt 0:00:22]} a6 {[%emt 0:00:49]} 23. g3 {[%emt 0:01:44]} Qc7 {[%emt 0:00:36]} 24. Kf1 {[%emt 0:00:43]} Nb6 {[%emt 0:00:53]} 25. Kg2 {[%emt 0:00:40]} d5 {[%emt 0:00:31]} 26. c5 {[%emt 0:00:40]} Na8 {[%emt 0:00:36]} 27. Qe5+ {[%emt 0:00:24]} Qe7 {[%emt 0:00:32]} 28. Qxe7+ {[%emt 0:00:19]} Kxe7 {[%emt 0:00:03]} 29. Be5 {[%emt 0:00:48]} Be6 {[%emt 0:00:50]} 30. Rd2 {[%emt 0:00:30]} Rfe8 {[%emt 0:00:23]} 31. Rhd1 {[%emt 0:00:19]} Ng8 {[%emt 0:00:33]} 32. Bd6+ {[%emt 0:01:07]} Rxd6 {[%emt 0:00:01]} 33. cxd6+ {[%emt 0:00:09]} Kxd6 {[%emt 0:00:03]} 34. Nxd5 {[%emt 0:00:15]} Ke5 {[%emt 0:00:39]} 35. Nf4 {[%emt 0:00:15]} Nb6 {[%emt 0:00:29]} 36. Rd8 {[%emt 0:00:17]} Bf7 {[%emt 0:00:36]} 37. Rxe8+ {[%emt 0:00:26]} Bxe8 {[%emt 0:00:01]} 38. Rd8 {[%emt 0:00:22]} Nf6 {[%emt 0:00:03]} 39. Bd1 {[%emt 0:01:23]} Nc4 {[%emt 0:01:37]} 40. Rb8 {[%emt 0:00:42]} Nd6 {[%emt 0:00:14]} 41. Rd8 {[%emt 0:30:34]} Ng8 {[%emt 0:31:16]} 42. Bb3 {[%emt 0:00:34]} Nxh6 {[%emt 0:00:00]} 43. Ne6 {[%emt 0:00:00]} Ng4 {[%emt 0:00:00]} 44. Nc5 {[%emt 0:00:00]} Nf6 {[%emt 0:00:00]} 45. Nd3+ {[%emt 0:00:00]} exd3 {[%emt 0:00:00]} 46. f4+ {[%emt 0:00:00]} Ke4 {[%emt 0:00:00]} 47. Rxd6 {[%emt 0:00:00]} Kxe3 {[%emt 0:00:00]} 48. Rxf6 {[%emt 0:00:00]} Bc6+ {[%emt 0:00:00]} 49. Kh3 {[%emt 0:00:00]} Bf3 {[%emt 0:00:00]} 50. Re6+ {[%emt 0:00:00]} Kd2 {[%emt 0:00:00]} 51. Re7 {[%emt 0:00:00]} b5 {[%emt 0:00:00]} 52. Rxh7 {[%emt 0:00:00]} Bd1 {[%emt 0:00:44]} 53. Bxd1 {[%emt 0:00:00]} Kxd1 {[%emt 0:00:05]} 54. Rg7 {[%emt 0:00:00]} d2 {[%emt 0:00:52]} 55. Rxg6 {[%emt 0:00:00]} Kc2 {[%emt 0:00:08]} 56. Rc6+ {[%emt 0:00:00]} Kb2 {[%emt 0:00:23]} 57. Rd6 {[%emt 0:00:00]} Kc2 {[%emt 0:00:08]} 58. g4 {[%emt 0:00:00]} 1-0

[Event "Summer Prague Open-A 2024"]
[Site "Prague"]
[Date "2024.08.02"]
[Round "1.4"]
[White "Penloup-Leboulanger, Marvin"]
[Black "Prokofiev, Valentyn"]
[Result "0-1"]
[Annotator "RC"]
[ECO "B31"]
[WhiteElo "1923"]
[BlackElo "2381"]
[PlyCount "68"]
[EventDate "2024.08.02"]
[EventType "swiss"]
[EventCountry "CZE"]
[SourceTitle "playchess.com"]
[Source "ChessBase"]
[SourceQuality "1"]
[TimeControl "40/5400+30:1800+30"]

1. e4 {[%emt 0:00:03]} c5 {[%emt 0:00:05]} 2. Nf3 {[%emt 0:00:04]} Nc6 {[%emt 0:00:07]} 3. Bb5 {[%emt 0:00:06]} g6 {[%emt 0:00:11]} 4. Bxc6 {[%emt 0:00:07]} bxc6 {[%emt 0:00:08]} 5. O-O {[%emt 0:00:40]} Bg7 {[%emt 0:00:13]} 6. Re1 {[%emt 0:00:54]} Nf6 {[%emt 0:06:06]} 7. e5 {[%emt 0:01:51]} Nd5 {[%emt 0:00:05]} 8. c4 {[%emt 0:00:59]} Nc7 {[%emt 0:00:16]} 9. d4 {[%emt 0:01:22]} cxd4 {[%emt 0:00:12]} 10. Qxd4 {[%emt 0:00:39]} d5 {[%emt 0:02:03]} 11. Nc3 {[%emt 0:03:40]} Ne6 {[%emt 0:00:48]} 12. Qh4 {[%emt 0:00:49]} d4 {[%emt 0:00:08]} 13. Ne4 {[%emt 0:00:40]} h6 {[%emt 0:00:27]} 14. b3 {[%emt 0:02:10]} c5 {[%emt 0:01:37]} 15. Bb2 {[%emt 0:04:15]} Rb8 {[%emt 0:05:33]} 16. h3 {[%emt 0:12:56]} Qc7 {[%emt 0:02:03]} 17. Ba3 {[%emt 0:08:30]} Qa5 {[%emt 0:03:01]} 18. Bc1 {[%emt 0:00:41]} Qc7 {[%emt 0:10:54]} 19. Ba3 {[%emt 0:02:44]} Bb7 {[%emt 0:00:24]} 20. Rad1 {[%emt 0:02:29]} Qa5 {[%emt 0:02:57]} 21. Bc1 {[%emt 0:16:58]} Qxa2 {[%emt 0:01:53]} 22. Nf6+ {[%emt 0:05:23]} Bxf6 {[%emt 0:03:47]} 23. exf6 {[%emt 0:00:14]} Bxf3 {[%emt 0:00:02]} 24. Qg3 {[%emt 0:02:12]} Rxb3 {[%emt 0:02:20]} 25. Rxe6 {[%emt 0:04:54]} fxe6 {[%emt 0:01:35]} 26. Qc7 {[%emt 0:00:33]} O-O {[%emt 0:00:19]} 27. Qxe7 {[%emt 0:04:11]} Rb7 {[%emt 0:00:04]} 28. Qxe6+ {[%emt 0:00:24]} Rbf7 {[%emt 0:00:56]} 29. Re1 {[%emt 0:07:18]} d3 {[%emt 0:05:11]} 30. Qe3 {[%emt 0:04:28]} Be2 {[%emt 0:00:59]} 31. Qxh6 {[%emt 0:01:15]} Rxf6 {[%emt 0:00:09]} 32. Bg5 {[%emt 0:00:23]} Qa6 {[%emt 0:00:31]} 33. Bxf6 {[%emt 0:00:42]} Qxf6 {[%emt 0:00:05]} 34. Rb1 {[%emt 0:00:22]} g5 {[%emt 0:01:00]} 0-1

[Event "Summer Prague Open-A 2024"]
[Site "Prague"]
[Date "2024.08.02"]
[Round "1.5"]
[White "Pulpan, Jakub"]
[Black "Janis, Petr"]
[Result "1-0"]
[Annotator "RC"]
[ECO "B31"]
[WhiteElo "2378"]
[BlackElo "1922"]
[PlyCount "57"]
[EventDate "2024.08.02"]
[EventType "swiss"]
[EventCountry "CZE"]
[SourceTitle "playchess.com"]
[Source "ChessBase"]
[SourceQuality "1"]
[TimeControl "40/5400+30:1800+30"]

1. e4 {[%emt 0:00:03]} c5 {[%emt 0:00:53]} 2. Nf3 {[%emt 0:01:33]} Nc6 {[%emt 0:00:42]} 3. Bb5 {[%emt 0:01:42]} g6 {[%emt 0:01:07]} 4. O-O {[%emt 0:00:48]} Bg7 {[%emt 0:03:32]} 5. Re1 {[%emt 0:00:37]} Nf6 {[%emt 0:05:49]} 6. c3 {[%emt 0:01:20]} O-O {[%emt 0:03:08]} 7. h3 {[%emt 0:01:05]} a6 {[%emt 0:03:22]} 8. Bxc6 {[%emt 0:02:04]} bxc6 {[%emt 0:02:24]} 9. d3 {[%emt 0:03:48]} d6 {[%emt 0:03:31]} 10. e5 {[%emt 0:12:51]} Nd5 {[%emt 0:05:49]} 11. Nbd2 {[%emt 0:04:33]} Qc7 {[%emt 0:10:03]} 12. Ne4 {[%emt 0:02:36]} Bf5 {[%emt 0:04:08]} 13. g4 {[%emt 0:05:26]} Bxe4 {[%emt 0:05:45]} 14. dxe4 {[%emt 0:00:43]} Nb6 {[%emt 0:00:40]} 15. exd6 {[%emt 0:00:29]} exd6 {[%emt 0:02:30]} 16. Bf4 {[%emt 0:00:37]} Nc4 {[%emt 0:03:22]} 17. Qe2 {[%emt 0:17:38]} Ne5 {[%emt 0:01:25]} 18. Nxe5 {[%emt 0:00:09]} Bxe5 {[%emt 0:02:23]} 19. Bxe5 {[%emt 0:00:09]} dxe5 {[%emt 0:00:06]} 20. Rad1 {[%emt 0:00:04]} Rfd8 {[%emt 0:09:41]} 21. Rxd8+ {[%emt 0:04:55]} Rxd8 {[%emt 0:02:02]} 22. Qxa6 {[%emt 0:05:39]} Rd2 {[%emt 0:00:25]} 23. a4 {[%emt 0:01:42]} Qd6 {[%emt 0:02:26]} 24. Qc4 {[%emt 0:10:55]} Rxb2 {[%emt 0:04:31]} 25. Ra1 {[%emt 0:00:55]} Rc2 {[%emt 0:05:20]} 26. a5 {[%emt 0:02:57]} Qd2 {[%emt 0:01:26]} 27. Qxc5 {[%emt 0:02:18]} Rxc3 {[%emt 0:01:40]} 28. Qxe5 {[%emt 0:00:43]} Qb2 {[%emt 0:00:47]} 29. Rd1 {[%emt 0:00:49]} 1-0

[Event "Summer Prague Open-A 2024"]
[Site "Prague"]
[Date "2024.08.02"]
[Round "1.6"]
[White "Pajak, Jakub"]
[Black "Anwesh, Upadhyaya"]
[Result "0-1"]
[Annotator "RC"]
[ECO "C45"]
[WhiteElo "1922"]
[BlackElo "2373"]
[PlyCount "56"]
[EventDate "2024.08.02"]
[EventType "swiss"]
[EventCountry "CZE"]
[SourceTitle "playchess.com"]
[Source "ChessBase"]
[SourceQuality "1"]
[TimeControl "40/5400+30:1800+30"]

1. e4 {[%emt 0:00:03]} e5 {[%emt 0:18:44]} 2. Nf3 {[%emt 0:00:10]} Nc6 {[%emt 0:00:15]} 3. d4 {[%emt 0:00:09]} exd4 {[%emt 0:00:20]} 4. Nxd4 {[%emt 0:00:09]} Bc5 {[%emt 0:00:43]} 5. Nxc6 {[%emt 0:00:11]} bxc6 {[%emt 0:01:19]} 6. Bd3 {[%emt 0:01:25]} Qh4 {[%emt 0:03:43]} 7. Qf3 {[%emt 0:03:59]} Nf6 {[%emt 0:02:39]} 8. Qg3 {[%emt 0:03:32]} Qxg3 {[%emt 0:01:42]} 9. hxg3 {[%emt 0:00:09]} O-O {[%emt 0:01:48]} 10. Nd2 {[%emt 0:15:32]} Re8 {[%emt 0:05:40]} 11. O-O {[%emt 0:00:33]} d5 {[%emt 0:03:23]} 12. Nb3 {[%emt 0:02:21]} Bb6 {[%emt 0:02:46]} 13. exd5 {[%emt 0:00:38]} cxd5 {[%emt 0:00:57]} 14. Bf4 {[%emt 0:03:42]} a5 {[%emt 0:09:35]} 15. a4 {[%emt 0:07:27]} Bd7 {[%emt 0:03:15]} 16. c4 {[%emt 0:04:07]} dxc4 {[%emt 0:00:41]} 17. Bxc4 {[%emt 0:00:09]} h6 {[%emt 0:00:25]} 18. Nd2 {[%emt 0:09:15]} Ng4 {[%emt 0:18:42]} 19. Nf3 {[%emt 0:02:02]} Rad8 {[%emt 0:02:13]} 20. b3 {[%emt 0:03:47]} Bc6 {[%emt 0:02:19]} 21. Nh2 {[%emt 0:07:19]} Nf6 {[%emt 0:06:36]} 22. Rad1 {[%emt 0:04:35]} Rxd1 {[%emt 0:05:33]} 23. Rxd1 {[%emt 0:00:51]} g5 {[%emt 0:01:31]} 24. Bc1 {[%emt 0:01:33]} Ne4 {[%emt 0:01:11]} 25. Ng4 {[%emt 0:01:10]} h5 {[%emt 0:00:58]} 26. Nh6+ {[%emt 0:05:57]} Kg7 {[%emt 0:01:43]} 27. Nf5+ {[%emt 0:00:31]} Kg6 {[%emt 0:00:36]} 28. Nd4 {[%emt 0:01:22]} Nc3 {[%emt 0:01:23]} 0-1

[Event "Summer Prague Open-A 2024"]
[Site "Prague"]
[Date "2024.08.02"]
[Round "1.7"]
[White "Konopka, Michal"]
[Black "Jepsen, Christian Matico"]
[Result "1-0"]
[Annotator "ChessBase"]
[ECO "D02"]
[WhiteElo "2325"]
[BlackElo "1921"]
[PlyCount "69"]
[EventDate "2024.08.02"]
[EventType "swiss"]
[EventCountry "CZE"]
[SourceTitle "playchess.com"]
[Source "ChessBase"]
[SourceQuality "1"]
[TimeControl "40/5400+30:1800+30"]

1. Nf3 {[%emt 0:10:56]} d5 {[%emt 0:00:47]} 2. d4 {[%emt 0:00:11]} Nf6 {[%emt 0:01:22]} 3. c4 {[%emt 0:04:18]} e6 {[%emt 0:01:38]} 4. g3 {[%emt 0:00:26]} Bb4+ {[%emt 0:03:17]} 5. Nbd2 {[%emt 0:01:21]} c6 {[%emt 0:02:10]} 6. Qc2 {[%emt 0:00:33]} Nbd7 {[%emt 0:01:52]} 7. Bg2 {[%emt 0:00:07]} O-O {[%emt 0:00:31]} 8. O-O {[%emt 0:00:16]} Re8 {[%emt 0:01:18]} 9. e4 {[%emt 0:05:58]} dxe4 {[%emt 0:04:56]} 10. Nxe4 {[%emt 0:00:36]} Nxe4 {[%emt 0:00:16]} 11. Qxe4 {[%emt 0:00:07]} h6 {[%emt 0:12:53]} 12. Bf4 {[%emt 0:01:51]} Bf8 {[%emt 0:01:34]} 13. Rad1 {[%emt 0:01:17]} Qa5 {[%emt 0:00:39]} 14. a3 {[%emt 0:02:09]} Qf5 {[%emt 0:00:57]} 15. Qxf5 {[%emt 0:10:05]} exf5 {[%emt 0:00:38]} 16. d5 {[%emt 0:00:02]} g5 {[%emt 0:06:47]} 17. Bc7 {[%emt 0:01:16]} cxd5 {[%emt 0:05:05]} 18. cxd5 {[%emt 0:06:22]} b6 {[%emt 0:13:03]} 19. Nd4 {[%emt 0:02:06]} Bb7 {[%emt 0:00:47]} 20. Nxf5 {[%emt 0:03:11]} Re2 {[%emt 0:00:18]} 21. b4 {[%emt 0:09:02]} Rae8 {[%emt 0:05:28]} 22. d6 {[%emt 0:10:01]} Bxg2 23. Kxg2 Kh7 24. Nd4 R2e4 25. Nb5 a6 26. Nc3 R4e6 27. Na4 a5 28. b5 f5 29. Rd2 f4 {[%emt 0:13:49]} 30. Rfd1 fxg3 31. hxg3 h5 32. Nxb6 Nxb6 33. Bxb6 Rb8 34. Bxa5 Rxb5 35. d7 1-0

[Event "Summer Prague Open-A 2024"]
[Site "Prague"]
[Date "2024.08.02"]
[Round "1.8"]
[White "Dvoracek, Jan Matyas"]
[Black "Kulhanek, Tomas"]
[Result "0-1"]
[Annotator "ChessBase"]
[ECO "B07"]
[WhiteElo "1972"]
[BlackElo "2317"]
[PlyCount "68"]
[EventDate "2024.08.02"]
[EventType "swiss"]
[EventCountry "CZE"]
[SourceTitle "playchess.com"]
[Source "ChessBase"]
[SourceQuality "1"]
[TimeControl "40/5400+30:1800+30"]

1. e4 {[%emt 0:00:04]} d6 {[%emt 0:04:29]} 2. d4 {[%emt 0:00:15]} Nf6 {[%emt 0:00:11]} 3. Nc3 {[%emt 0:00:11]} g6 {[%emt 0:00:09]} 4. f3 {[%emt 0:00:19]} c6 {[%emt 0:00:56]} 5. a4 {[%emt 0:00:35]} Bg7 {[%emt 0:00:33]} 6. Be3 {[%emt 0:00:20]} Qa5 {[%emt 0:03:58]} 7. Nge2 {[%emt 0:02:00]} O-O {[%emt 0:02:40]} 8. Nc1 {[%emt 0:01:31]} Nbd7 {[%emt 0:05:14]} 9. Nb3 {[%emt 0:00:48]} Qc7 {[%emt 0:00:05]} 10. Qd2 {[%emt 0:01:42]} Re8 {[%emt 0:00:17]} 11. Bh6 {[%emt 0:04:48]} Bh8 {[%emt 0:01:08]} 12. h4 {[%emt 0:03:52]} e5 {[%emt 0:01:21]} 13. O-O-O {[%emt 0:12:57]} exd4 {[%emt 0:09:51]} 14. Nxd4 {[%emt 0:00:08]} Ne5 {[%emt 0:00:16]} 15. Be2 {[%emt 0:29:27]} a6 {[%emt 0:03:18]} 16. Nf5 {[%emt 0:06:44]} Bxf5 {[%emt 0:02:18]} 17. exf5 {[%emt 0:00:06]} d5 {[%emt 0:00:47]} 18. h5 {[%emt 0:02:22]} b5 {[%emt 0:02:03]} 19. hxg6 {[%emt 0:02:36]} fxg6 {[%emt 0:00:14]} 20. fxg6 {[%emt 0:00:35]} hxg6 {[%emt 0:02:47]} 21. Qg5 {[%emt 0:04:04]} Nh7 {[%emt 0:04:01]} 22. Qh4 {[%emt 0:02:58]} Qe7 {[%emt 0:04:25]} 23. Qg3 {[%emt 0:07:11]} Qf6 {[%emt 0:04:07]} 24. f4 {[%emt 0:01:50]} Nd7 {[%emt 0:09:39]} 25. Bd3 {[%emt 0:00:52]} Ndf8 {[%emt 0:01:38]} 26. Bxf8 {[%emt 0:02:25]} Nxf8 {[%emt 0:00:27]} 27. Rh6 {[%emt 0:03:01]} Bg7 {[%emt 0:03:47]} 28. Bxg6 {[%emt 0:00:04]} Bxh6 {[%emt 0:01:10]} 29. Bxe8+ {[%emt 0:00:11]} Kh8 {[%emt 0:00:47]} 30. Qe1 {[%emt 0:00:49]} b4 {[%emt 0:07:59]} 31. Na2 {[%emt 0:08:25]} Bg7 {[%emt 0:04:00]} 32. c3 {[%emt 0:01:11]} Rb8 {[%emt 0:04:31]} 33. g3 {[%emt 0:01:59]} b3 {[%emt 0:01:20]} 34. Qh1+ {[%emt 0:00:34]} Kg8 {[%emt 0:04:31]} 0-1

[Event "Summer Prague Open-A 2024"]
[Site "Prague"]
[Date "2024.08.02"]
[Round "1.9"]
[White "Eret, Matous"]
[Black "Pavlicek, Petr"]
[Result "1-0"]
[Annotator "ChessBase"]
[ECO "A13"]
[WhiteElo "2316"]
[BlackElo "1915"]
[PlyCount "45"]
[EventDate "2024.08.02"]
[EventType "swiss"]
[EventCountry "CZE"]
[SourceTitle "playchess.com"]
[Source "ChessBase"]
[SourceQuality "1"]
[TimeControl "40/5400+30:1800+30"]

1. c4 {[%emt 0:00:04]} e6 {[%emt 0:00:16]} 2. b3 {[%emt 0:00:15]} Be7 {[%emt 0:01:31]} 3. Bb2 {[%emt 0:00:06]} Bf6 {[%emt 0:00:12]} 4. Nc3 {[%emt 0:02:20]} Ne7 {[%emt 0:00:31]} 5. Nf3 {[%emt 0:00:42]} d5 {[%emt 0:00:31]} 6. d4 {[%emt 0:04:26]} O-O {[%emt 0:00:39]} 7. e4 {[%emt 0:01:06]} g6 {[%emt 0:00:48]} 8. h4 {[%emt 0:01:16]} h6 {[%emt 0:02:57]} 9. h5 {[%emt 0:03:25]} g5 {[%emt 0:00:18]} 10. e5 {[%emt 0:01:12]} Bg7 {[%emt 0:00:19]} 11. Nxg5 {[%emt 0:01:02]} hxg5 {[%emt 0:02:00]} 12. h6 {[%emt 0:00:05]} Ng6 {[%emt 0:05:49]} 13. hxg7 {[%emt 0:06:07]} Kxg7 {[%emt 0:00:10]} 14. Qd2 {[%emt 0:02:25]} c6 {[%emt 0:02:53]} 15. g3 {[%emt 0:02:20]} Rh8 {[%emt 0:06:35]} 16. Rxh8 {[%emt 0:00:32]} Nxh8 {[%emt 0:01:25]} 17. Bd3 {[%emt 0:01:17]} f6 {[%emt 0:06:26]} 18. O-O-O {[%emt 0:01:57]} Nd7 {[%emt 0:00:18]} 19. Rh1 {[%emt 0:00:34]} Nf8 {[%emt 0:00:27]} 20. f4 {[%emt 0:01:20]} Nf7 {[%emt 0:02:24]} 21. fxg5 {[%emt 0:09:11]} fxg5 {[%emt 0:11:59]} 22. Ba3 {[%emt 0:01:48]} Ng6 {[%emt 0:25:36]} 23. Bxg6 {[%emt 0:00:18]} 1-0

[Event "Summer Prague Open-A 2024"]
[Site "Prague"]
[Date "2024.08.02"]
[Round "1.10"]
[White "Kiracoglu, Nejat"]
[Black "Mirimanian, Hayk"]
[Result "0-1"]
[Annotator "ChessBase"]
[ECO "C55"]
[WhiteElo "1908"]
[BlackElo "2290"]
[PlyCount "60"]
[EventDate "2024.08.02"]
[EventType "swiss"]
[EventCountry "CZE"]
[SourceTitle "playchess.com"]
[Source "ChessBase"]
[SourceQuality "1"]
[TimeControl "40/5400+30:1800+30"]

1. e4 {[%emt 0:00:02]} e5 {[%emt 0:01:57]} 2. Nf3 {[%emt 0:00:13]} Nc6 {[%emt 0:00:05]} 3. Bc4 {[%emt 0:00:08]} Nf6 {[%emt 0:00:09]} 4. d3 {[%emt 0:02:45]} h6 {[%emt 0:00:11]} 5. Nc3 {[%emt 0:01:19]} d6 {[%emt 0:02:00]} 6. h3 {[%emt 0:00:57]} g6 {[%emt 0:00:50]} 7. Be3 {[%emt 0:01:35]} Bg7 {[%emt 0:00:16]} 8. Qd2 {[%emt 0:06:32]} a6 {[%emt 0:03:04]} 9. d4 {[%emt 0:09:19]} exd4 {[%emt 0:44:51]} 10. Nxd4 {[%emt 0:02:35]} Bd7 {[%emt 0:09:57]} 11. a4 {[%emt 0:17:41]} O-O {[%emt 0:01:36]} 12. Nxc6 {[%emt 0:13:17]} Bxc6 {[%emt 0:00:22]} 13. Bxh6 {[%emt 0:00:31]} Nxe4 {[%emt 0:00:52]} 14. Nxe4 {[%emt 0:00:13]} Qh4 {[%emt 0:00:50]} 15. Bxg7 {[%emt 0:07:39]} Qxe4+ {[%emt 0:00:11]} 16. Qe2 {[%emt 0:09:09]} Kxg7 {[%emt 0:03:34]} 17. Qxe4 {[%emt 0:17:59]} Bxe4 {[%emt 0:00:06]} 18. O-O-O {[%emt 0:01:11]} Bxg2 {[%emt 0:00:16]} 19. Rh2 {[%emt 0:00:03]} Bc6 {[%emt 0:00:09]} 20. a5 {[%emt 0:02:31]} Rae8 {[%emt 0:00:21]} 21. Bd3 {[%emt 0:01:33]} Re5 {[%emt 0:00:13]} 22. b4 {[%emt 0:00:32]} Rh8 {[%emt 0:00:05]} 23. Rg1 {[%emt 0:02:16]} Rh4 {[%emt 0:00:21]} 24. c3 {[%emt 0:00:51]} Bd7 {[%emt 0:03:12]} 25. Rg3 {[%emt 0:01:26]} c5 {[%emt 0:00:01]} 26. bxc5 {[%emt 0:00:41]} Rxc5 {[%emt 0:00:02]} 27. Kb2 {[%emt 0:00:29]} Rxa5 {[%emt 0:00:39]} 28. Re3 {[%emt 0:00:11]} Re5 {[%emt 0:00:07]} 29. Rxe5 {[%emt 0:00:43]} dxe5 {[%emt 0:00:02]} 30. f3 {[%emt 0:00:11]} Rxh3 {[%emt 0:00:10]} 0-1